[Event "FRA-ch Teams Top 16-A 2022"]
[Site "Chartres"]
[Date "2022.06.12"]
[Round "4.22"]
[White "Rodshtein, Maxim"]
[Black "Flom, Gabriel"]
[Result "1/2-1/2"]
[ECO "A65"]
[WhiteElo "2588"]
[BlackElo "2442"]
[Annotator "TA"]
[PlyCount "99"]
[EventDate "2022.06.09"]
[EventType "team-tourn"]
[EventCountry "FRA"]
[SourceTitle "playchess.com"]
[Source "ChessBase"]
[SourceQuality "1"]
[TimeControl "40/5400+30:1800+30"]

{[%evp 16,99,54,58,57,41,39,42,64,61,63,88,62,72,193,78,93,95,81,89,88,84,94,90,142,129,140,106,104,86,104,120,138,49,60,62,43,44,106,117,108,101,108,54,54,57,206,57,57,33,37,0,0,0,0,0,0,0,0,0,183,68,276,240,213,0,0,0,0,0,0,0,0,0,0,0,0,0,0,0,0,0,0,0,2,0]} 1. d4 {[%emt 0:00:22]} Nf6 {[%emt 0:00:40]} 2. c4 {[%emt 0:00:16]} g6 {[%emt 0:00:56]} 3. Nc3 {[%emt 0:01:54]} Bg7 {[%emt 0:00:03]} 4. e4 {[%emt 0:00:17]} d6 {[%emt 0:00:04]} 5. Nge2 {[%emt 0:01:40]} O-O {[%emt 0:01:05]} 6. Ng3 {[%emt 0:00:14]} c5 {[%emt 0:00:39]} 7. d5 {[%emt 0:00:21]} e6 {[%emt 0:00:08]} 8. Be2 {[%emt 0:01:06]} exd5 {[%emt 0:01:04]} 9. cxd5 {[%emt 0:00:58] 9.cxd5 scores better than 9.exd5.} (9. Nxd5 Nc6 $11) 9... h5 {[%emt 0:01:39] A65: Modern Benoni: 6 e4.} 10. Bg5 {[%emt 0:06:43]} a6 {[%emt 0:04:20]} 11. a4 {[%emt 0:03:15] Against b5} Nbd7 {[%emt 0:00:04] White is slightly better.} 12. O-O {[%emt 0:10:29]} Qc7 {[%emt 0:00:59]} 13. f4 {[%emt 0:07:53]} c4 {[%emt 0:02:15]} 14. Kh1 {[%emt 0:01:20][%cal Oe4e5] [#] Active counter play!} Re8 $146 {[%emt 0:13:36] Inhibits e5.} (14... Rb8 $16 {was necessary.}) ({Predecessor:} 14... Nh7 15. Bh4 Rb8 16. Bf3 Nc5 17. e5 b5 18. axb5 axb5 19. Nge4 Nxe4 20. Nxe4 dxe5 {1-0 (56) Shishkin,V (2498)-Mickiewicz,P (2262) Lazy 2009}) 15. Qc2 {[%emt 0:14:40]} (15. e5 $1 $18 {[%cal Re5f6] is the precise move to win.}) 15... Nh7 $16 {[%emt 0:14:04]} 16. Bh4 {[%emt 0:01:16]} Bf6 {[%emt 0:00:03] Prevents e5.} 17. Bxf6 {[%emt 0:00:27]} Ndxf6 {[%emt 0:00:04]} 18. Bf3 $1 {[%emt 0:07:05]} h4 {[%emt 0:03:39]} 19. Nge2 {[%emt 0:00:10]} h3 {[%emt 0:54:38]} (19... Nd7 $142) 20. Nd4 {[%emt 0:08:49]} Qc5 21. Qd2 {[%emt 0:31:45]} hxg2+ {[%emt 0:00:00]} 22. Bxg2 {[%emt 0:00:00]} Bd7 {[%emt 0:00:00]} 23. Rae1 {[%emt 0:00:00]} b5 {[%emt 0:00:00]} 24. axb5 {[%emt 0:00:00]} ({White should play} 24. e5 $1 $16 {[%cal Re5f6]} b4 25. exf6 Rxe1 26. Rxe1 bxc3 27. bxc3 Nxf6 28. f5) 24... axb5 $14 {[%emt 0:00:00]} 25. e5 $1 {[%emt 0:00:00]} b4 {[%emt 0:00:00]} 26. exf6 {[%emt 0:00:00]} bxc3 {[%emt 0:00:00]} ({Better is} 26... Rxe1 $1 $14 27. Rxe1 bxc3 28. bxc3 Re8) 27. bxc3 $16 {[%emt 0:00:00]} Bf5 {[%emt 0:00:00]} 28. Nxf5 {[%emt 0:00:00]} gxf5 {[%emt 0:00:00] [#]} 29. Qc2 {[%emt 0:00:00]} (29. Bf3 $1 $16 {White wants to mate with Qg2+.} Nxf6 30. Qg2+ Kh8 31. Rg1) 29... Rxe1 $14 {[%emt 0:00:00]} 30. Rxe1 {[%emt 0:00:00]} Qc8 {[%emt 0:00:00] [#]} ({Black should try} 30... Kh8 $1 $14) 31. Qf2 {[%emt 0:00:00]} (31. Bh3 $6 Nxf6 32. Qf2 (32. Bxf5 Qc5 $11) 32... Ng4 33. Bxg4 fxg4 $16) (31. Rg1 $1 $18 Nxf6 32. Bf3+ (32. Be4+ Kf8 $11) 32... Kh7 33. Qg2) 31... Kh8 $1 {[%emt 0:00:00]} 32. Bh3 $40 {[%emt 0:00:00][%mdl 128] Threatening mate with Qh4. White attacks.} Qd8 {[%emt 0:00:00]} 33. Bxf5 {[%emt 0:00:00] Qh4 would kill now.} (33. Rg1 $5 {[%cal Rh3f5]} Qxf6 34. Qc2 $16) 33... Qxf6 {[%emt 0:00:00]} 34. Qc2 {[%emt 0:01:09]} Qh4 $1 {[%emt 0:00:00][%csl LRe1,LRf4]} 35. Qd2 {[%emt 0:00:13]} Nf6 {[%emt 0:00:00][%cal Oa8a2]} 36. Rg1 {[%emt 0:05:20] Hoping for Rg3.} Rg8 {[%emt 0:00:00] Inhibits Rg3.} 37. Rg5 {[%emt 0:00:41]} Re8 $2 {[%emt 0:00:24]} (37... Rxg5 $11 {and Black has nothing to worry.} 38. fxg5 Nh5) 38. Qd4 {[%emt 0:00:31]} (38. Rg3 $18 Ne4 39. Bxe4 (39. Qd4+ Qf6 $11) 39... Rxe4 40. Qa2 Re1+ 41. Kg2) 38... Re1+ $2 {[%emt 0:01:40]} (38... Re5 $14 39. fxe5 Qxg5) 39. Kg2 $18 {[%emt 0:00:09][%cal Rd4f6] The board is on fire.} Re5 {[%emt 0:00:20][%cal Oe5f5] ...Rxf5! is the strong threat.} 40. Qf2 $2 {[%emt 0:00:54]} ({Inferior is} 40. fxe5 Qxg5+ 41. Kh1 Qxf5 $11) ({White has to play} 40. Qxc4 $18 {[%cal Og5g3] Threatens to win with Rg3!} Re8 41. Rg3 (41. Qd4 Re5 $18)) 40... Qxf2+ $11 {[%emt 0:01:00] The position is equal.} 41. Kxf2 {[%emt 0:30:05]} Rxd5 {[%emt 0:30:19][%mdl 4096] Endgame KRB-KRN} 42. Ke2 {[%emt 0:00:00]} Rc5 {[%emt 0:00:00]} 43. Kd2 {[%emt 0:00:00]} Rd5+ {[%emt 0:00:00]} 44. Kc1 {[%emt 0:00:00]} Ra5 {[%emt 0:00:00]} 45. Bb1 {[%emt 0:00:00]} Ra3 {[%emt 0:00:00]} 46. Kd2 {[%emt 0:00:00]} d5 {[%emt 0:00:00]} 47. h4 {[%emt 0:00:00]} Ra1 {[%emt 0:00:00]} 48. Kc2 {[%emt 0:00:00]} Ra3 {[%emt 0:00:00]} 49. Kd2 {[%emt 0:00:00]} Ra1 {[%emt 0:00:00]} 50. Kc2 {[%emt 0:00:00] Weighted Error Value: White=0.27 (precise) /Black=0.27 (precise)} 1/2-1/2

[Event "FRA-ch Teams Top 16-A 2022"]
[Site "Chartres"]
[Date "2022.06.12"]
[Round "4.23"]
[White "Kuhn, Clement"]
[Black "Maze, Sebastien"]
[Result "1/2-1/2"]
[ECO "E71"]
[WhiteElo "2280"]
[BlackElo "2519"]
[Annotator "TA"]
[PlyCount "86"]
[EventDate "2022.06.09"]
[EventType "team-tourn"]
[EventCountry "FRA"]
[SourceTitle "playchess.com"]
[Source "ChessBase"]
[SourceQuality "1"]
[TimeControl "40/5400+30:1800+30"]

{[%evp 9,86,31,45,33,48,44,62,59,52,46,67,66,74,76,76,65,72,52,73,34,83,81,77,75,146,152,148,145,220,214,206,214,205,216,305,293,284,296,368,380,379,337,334,320,324,325,314,335,334,278,278,201,220,216,210,213,451,451,368,442,431,426,490,8,6,0,0,0,0,0,0,0,0,0,8,0,0,0,0]} 1. d4 {[%emt 0:00:14]} Nf6 {[%emt 0:00:30]} 2. c4 {[%emt 0:00:20]} g6 {[%emt 0:00:09]} 3. Nc3 {[%emt 0:00:13]} Bg7 {[%emt 0:00:04]} 4. e4 {[%emt 0:00:09]} d6 {[%emt 0:00:05]} 5. h3 {[%emt 0:00:26]} Nbd7 {[%emt 0:01:08]} 6. Be3 {[%emt 0:00:53] E71: King's Indian: 4 e4 d6 5 h3.} e5 {[%emt 0:01:46]} 7. Nge2 {[%emt 0:07:31][%cal Bg1e2,Be2d4,Bd4f3,Bf3d4][%mdl 32] [#]} h5 $146 {[%emt 0:08:50]} ({Predecessor:} 7... O-O 8. d5 Nc5 9. Qc2 a5 10. g4 Ne8 11. Ng3 Bf6 12. O-O-O Bg5 13. Bd3 Bxe3+ 14. fxe3 {1-0 (32) Katashuk,V (2142)-Ilyuchyk,Y (2083) Minsk 2018}) 8. g3 {[%emt 0:04:57] White is slightly better.} O-O {[%emt 0:14:04]} 9. Bg2 {[%emt 0:05:30]} a6 {[%emt 0:01:27][%cal Ob7b5]} 10. O-O {[%emt 0:06:16]} exd4 {[%emt 0:05:13]} 11. Nxd4 {[%emt 0:01:17]} (11. Qxd4 $6 Ne5 $11) 11... Rb8 {[%emt 0:00:05]} 12. Rc1 {[%emt 0:04:29]} Re8 {[%emt 0:00:30]} 13. Re1 {[%emt 0:00:30]} c6 {[%emt 0:00:30]} 14. f4 {[%emt 0:00:30] 0x0.00166c33e6eadp-1022s more active pieces.} Qc7 {[%emt 0:00:30]} (14... c5 $14 {feels stronger.}) 15. Bf2 $16 {[%emt 0:00:30]} c5 {[%emt 0:00:30]} 16. Nf3 {[%emt 0:00:30]} b5 {[%emt 0:23:10]} (16... b6 $142) 17. cxb5 {[%emt 0:19:03]} axb5 {[%emt 0:00:11] [#]} 18. b4 $1 {[%emt 0:07:03][%cal Bb2b4,Bb4b5,Bb5c6][%mdl 32]} c4 {[%emt 0:00:30]} (18... Qd8 $16 {was worth a try.}) 19. Nd4 $18 {[%emt 0:00:30]} Ba6 {[%emt 0:00:30]} 20. a4 {[%emt 0:00:30]} bxa4 {[%emt 0:00:30]} 21. Qxa4 {[%emt 0:00:30]} Qc8 {[%emt 0:00:30]} (21... Ra8 $142 22. Qc6 Qxc6 23. Nxc6 Rac8) 22. b5 {[%emt 0:00:30]} Bb7 {[%emt 0:00:30][%cal Oh5h4]} 23. Nc6 {[%emt 0:00:30]} Bxc6 {[%emt 0:00:30]} 24. bxc6 {[%emt 0:00:30]} Nb6 {[%emt 0:00:30]} 25. Bxb6 {[%emt 0:00:30]} (25. Qb5 Nbd5 $18) 25... Rxb6 {[%emt 0:00:30]} 26. e5 {[%emt 0:00:30]} (26. Qxc4 Rxc6 27. Qd3 {[#]} Nxe4 $1 28. Rxe4 Rxe4 29. Bxe4 Rxc3 30. Rxc3 Bxc3 $15) 26... dxe5 {[%emt 0:00:30]} 27. fxe5 {[%emt 0:00:30]} Nh7 {[%emt 0:00:30]} 28. Qxc4 {[%emt 0:00:30]} Ng5 {[%emt 0:00:30]} 29. Rc2 {[%emt 0:39:39] Against Rb2. Nd5 is the strong threat.} Rxe5 {[%emt 0:15:09]} 30. Rd1 {[%emt 0:00:00]} Qe6 {[%emt 0:09:20]} (30... Nxh3+ $2 31. Kh2 Rxc6 32. Qxc6 $18) 31. Qxe6 {[%emt 0:00:00]} Nxe6 {[%emt 0:00:02]} 32. Nd5 {[%emt 0:00:00]} Rb3 {[%emt 0:00:04]} (32... Ra6 {is a better defense.} 33. Nf4 Nc7) 33. Nf4 {[%emt 0:00:00] Black must now prevent Nxe6.} ({Less strong is} 33. c7 Nxc7 34. Nxc7 (34. Rxc7 Rxg3 35. Rc3 Rxc3 $16) 34... Rf5 $16) ({Not} 33. Ne7+ Kh8 $16) 33... Nc7 {[%emt 0:01:45]} 34. Rd7 {[%emt 0:00:00]} Re1+ {[%emt 0:02:34]} 35. Kf2 {[%emt 0:00:17]} Re8 {[%emt 0:01:59]} 36. Re2 $2 {[%emt 0:01:37]} (36. Bf1 $18 {And now Bc4 would win.} Bc3 37. Rxc7 Be1+ 38. Kg1 Rxg3+ 39. Bg2) 36... Rxe2+ $11 {[%emt 0:01:01] The position is equal.} 37. Nxe2 {[%emt 0:00:01]} Be5 {[%emt 0:00:58]} 38. Bd5 {[%emt 0:00:26]} Nxd5 {[%emt 0:00:51]} 39. Rxd5 {[%emt 0:00:01]} Bc7 {[%emt 0:00:06]} 40. Rd7 {[%emt 0:00:54]} Bb6+ {[%emt 0:00:22]} 41. Ke1 {[%emt 0:30:29] aiming for Rb7.} Ba5+ $1 {[%emt 0:36:53]} 42. Kf2 {[%emt 0:00:00] Hoping for Rb7.} Bb6+ {[%emt 0:00:00]} 43. Ke1 {[%emt 0:00:00] Threatens to win with Rb7.} Ba5+ $1 {[%emt 0:00:00] White really could win this.  Weighted Error Value: White=0.28 (precise) /Black=0.24 (precise)} 1/2-1/2

[Event "FRA-ch Teams Top 16-A 2022"]
[Site "Chartres"]
[Date "2022.06.12"]
[Round "4.24"]
[White "Sebag, Marie"]
[Black "Aflalo, Sophie"]
[Result "1-0"]
[ECO "B30"]
[WhiteElo "2472"]
[BlackElo "2152"]
[Annotator "TA"]
[PlyCount "82"]
[EventDate "2022.06.09"]
[EventType "team-tourn"]
[EventCountry "FRA"]
[SourceTitle "playchess.com"]
[Source "ChessBase"]
[SourceQuality "1"]
[TimeControl "40/5400+30:1800+30"]

{[%evp 9,82,21,54,51,71,43,70,64,75,60,90,83,89,91,94,81,90,43,46,40,72,62,62,64,66,65,77,32,122,110,189,192,329,329,426,393,536,550,569,568,550,534,572,566,637,652,639,643,722,708,829,772,803,779,780,763,1046,741,730,720,786,760,803,816,810,798,1297,1294,12834,12834,12833,12832,12834,12092,1725]} 1. e4 {[%emt 0:02:22]} c5 {[%emt 0:08:24]} 2. Nf3 {[%emt 0:02:16]} Nc6 {[%emt 0:00:09]} 3. Bb5 {[%emt 0:00:07]} Nf6 {[%emt 0:00:29]} 4. Nc3 {[%emt 0:02:26]} Qc7 {[%emt 0:02:07]} 5. O-O {[%emt 0:07:08]} e6 {[%emt 0:01:47]} 6. Re1 {[%emt 0:09:26] B30: Sicilian: 2...Nc6 3 Bb5, lines without ...g6.} Ne5 {[%emt 0:11:59]} 7. Bf1 {[%emt 0:17:34] [#]} a6 $146 {[%emt 0:01:39]} ({Predecessor:} 7... d6 8. Nb5 Qb8 9. d4 cxd4 10. Nbxd4 a6 11. c4 Be7 12. b3 O-O 13. Bb2 Rd8 {1-0 (54) Demchenko,A (2495)-Shtyrenkov,V (2348) Alushta 2008}) 8. Nxe5 {[%emt 0:02:35] White is slightly better.} Qxe5 {[%emt 0:00:06]} 9. d3 {[%emt 0:00:28]} h5 {[%emt 0:15:05]} (9... Bd6 $2 10. f4 Qh5 11. Be2 $18) 10. g3 {[%emt 0:10:14]} h4 {[%emt 0:13:57]} 11. Bf4 {[%emt 0:01:57]} Qh5 {[%emt 0:00:38]} 12. Qxh5 {[%emt 0:02:31]} Nxh5 {[%emt 0:00:30]} 13. Be3 {[%emt 0:03:51] White is more active.} (13. Bc7 $16) 13... hxg3 {[%emt 0:04:28]} 14. hxg3 {[%emt 0:00:17]} b5 {[%emt 0:00:21]} 15. Bg2 {[%emt 0:12:25] [#] aiming for e5.} Bb7 {[%emt 0:02:39]} 16. e5 {[%emt 0:01:57] Inhibits Nf6.} Bxg2 {[%emt 0:02:21]} 17. Kxg2 {[%emt 0:00:07] g4 is the strong threat.} f5 {[%emt 0:03:53]} 18. Rh1 {[%emt 0:02:09]} d5 {[%emt 0:01:54] White now steadily converts the win.} (18... d6 $1 $14) 19. Ne2 $36 {[%emt 0:01:57][%mdl 2048] White is in control.} d4 {[%emt 0:02:47]} (19... Kf7 $16 {might work better.}) 20. Bd2 $18 {[%emt 0:00:51] Black must now prevent f3.} Be7 {[%emt 0:00:31]} (20... g6 $142 21. f3 Rg8) 21. f3 {[%emt 0:00:27]} g5 {[%emt 0:09:15]} 22. Rh2 {[%emt 0:04:55]} c4 {[%emt 0:09:45]} 23. Rah1 {[%emt 0:01:23] White is clearly winning.} cxd3 {[%emt 0:03:18]} 24. cxd3 {[%emt 0:00:05]} Rc8 {[%emt 0:00:02][%cal Oc8c2]} 25. Nxd4 {[%emt 0:00:14]} ({Worse is} 25. Rxh5 Rxh5 26. Rxh5 Rc2 $11) 25... Rd8 {[%emt 0:00:34]} 26. Nb3 {[%emt 0:00:38]} ({Less strong is} 26. Rxh5 Rxh5 27. Rxh5 Rxd4 $16) 26... Rxd3 {[%emt 0:01:33]} 27. Rxh5 {[%emt 0:00:44]} Rxh5 {[%emt 0:02:59]} 28. Rxh5 {[%emt 0:00:05]} a5 {[%emt 0:00:11]} 29. Bxa5 {[%emt 0:01:13]} Re3 {[%emt 0:00:07]} 30. Rh8+ {[%emt 0:02:24]} Kf7 {[%emt 0:00:22]} 31. Rh7+ {[%emt 0:00:25]} Ke8 {[%emt 0:01:04]} 32. Nd4 {[%emt 0:02:45][%csl LRb5,LRe6]} g4 {[%emt 0:00:28]} 33. fxg4 {[%emt 0:00:35]} fxg4 {[%emt 0:00:02]} 34. a3 {[%emt 0:02:53]} Bc5 {[%emt 0:00:57]} 35. Bc3 {[%emt 0:00:47]} Rxe5 {[%emt 0:00:49]} 36. Nxb5 {[%emt 0:01:10]} Re2+ {[%emt 0:00:16]} 37. Kf1 {[%emt 0:00:13]} Rf2+ {[%emt 0:00:41]} 38. Ke1 {[%emt 0:00:03] [#] And now Nc7+ would win.} Rf7 {[%emt 0:00:51]} 39. Nc7+ {[%emt 0:00:25]} Ke7 {[%emt 0:00:13]} 40. Rxf7+ {[%emt 0:01:36]} Kxf7 {[%emt 0:00:02]} 41. Be5 {[%emt 0:30:23]} Bb6 {[%emt 0:30:42] Weighted Error Value: White=0.09 (flawless) /Black=0.42} 1-0

[Event "FRA-ch Teams Top 16-A 2022"]
[Site "Chartres"]
[Date "2022.06.12"]
[Round "4.25"]
[White "Lagarde, Maxime"]
[Black "Sochacki, Christophe"]
[Result "0-1"]
[ECO "C42"]
[WhiteElo "2628"]
[BlackElo "2493"]
[Annotator "TA"]
[PlyCount "76"]
[EventDate "2022.06.09"]
[EventType "team-tourn"]
[EventCountry "FRA"]
[SourceTitle "playchess.com"]
[Source "ChessBase"]
[SourceQuality "1"]
[TimeControl "40/5400+30:1800+30"]

{[%evp 12,76,4,7,6,0,1,0,0,-29,17,-7,0,0,0,-118,-122,-127,-125,-134,-120,-123,-147,-204,-232,-230,-225,-224,-193,-241,-193,-674,-670,-639,-664,-669,-543,-533,-533,-747,-741,-706,-670,-1457,-965,-1349,-706,-784,-716,-681,-687,-617,-600,-613,-607,-950,-986,-997,-1002,-1000,-995,-995,-997,-973,-920,-29977,-29975]} 1. e4 {[%emt 0:00:03]} e5 {[%emt 0:00:37]} 2. Nf3 {[%emt 0:00:05]} Nf6 {[%emt 0:00:05]} 3. Nxe5 {[%emt 0:00:02]} d6 {[%emt 0:00:05]} 4. Nf3 {[%emt 0:00:03]} Nxe4 {[%emt 0:00:05]} 5. c4 {[%emt 0:00:02]} Nc6 {[%emt 0:05:00]} 6. Nc3 {[%emt 0:00:06]} Nxc3 {[%emt 0:00:08]} 7. dxc3 {[%emt 0:00:03]} g6 {[%emt 0:01:34] C42: Petroff Defence: 3 Nxe5 and unusual White 3rd moves.} 8. Be3 {[%emt 0:09:11]} Bg7 {[%emt 0:01:22]} 9. Qd2 {[%emt 0:00:04]} O-O {[%emt 0:01:14] [#] The position is equal.} 10. O-O-O $146 {[%emt 0:00:19]} ({Predecessor:} 10. Be2 a5 11. Rd1 b6 12. h3 Bb7 13. O-O Re8 14. Rfe1 a4 {½-½ (16) Baciu,D (2266)-Papp,P (2334) Germany 2018}) 10... Bg4 {[%emt 0:05:22]} (10... a5 $142) 11. Be2 {[%emt 0:08:17]} a5 {[%emt 0:10:31]} 12. h3 {[%emt 0:03:48]} Bf5 {[%emt 0:01:29]} 13. Ng5 {[%emt 0:05:21] [#]} (13. Rhe1 $11) 13... Nb4 $1 $17 {[%emt 0:10:34][%mdl 512]} 14. cxb4 {[%emt 0:00:58]} axb4 {[%emt 0:00:04]} 15. g4 {[%emt 0:09:50][%cal Bg2g4,Bg4f5][%mdl 32]} (15. Qxb4 $2 Rxa2 16. Qb3 (16. Bd3 $2 Bxd3 17. Rxd3 Ra1+ 18. Kd2 Rxh1 $19) 16... Rxb2 17. Qxb2 Bxb2+ 18. Kxb2 Qf6+ 19. Kb3 Ra8 $19) 15... Rxa2 {[%emt 0:04:23][%cal Ra2a1]} 16. gxf5 {[%emt 0:01:06]} Rxb2 $40 {[%emt 0:12:13][%mdl 128] Black goes for the king.} 17. Qxb2 {[%emt 0:02:42]} (17. fxg6 $17 {might work better.} hxg6 18. Qxb2 Bxb2+ 19. Kxb2 Qf6+ 20. Kb1 (20. Rd4 $2 c5 $19)) 17... Bxb2+ $19 {[%emt 0:00:04]} 18. Kxb2 {[%emt 0:00:06]} Qf6+ {[%emt 0:00:07]} 19. Rd4 {[%emt 0:01:11] [#]} c5 $1 {[%emt 0:04:28][%mdl 64] Pin. Really sharp!} 20. Ne4 {[%emt 0:00:06]} Qxf5 {[%emt 0:03:07]} ({But not} 20... Qh8 {[#]} 21. Rhd1 $1 cxd4 22. Bxd4 $18) 21. Bd3 $2 {[%emt 0:22:20]} ({Don't go for} 21. Nxd6 $2 Qe5 22. Rhd1 cxd4 23. Rxd4 f5 $19) (21. Rxd6 Qe5+ 22. Kb3) 21... cxd4 {[%emt 0:11:08]} 22. Bxd4 {[%emt 0:00:09] Black must now prevent Nf6+.} Qf3 {[%emt 0:00:13][%csl LRd3,LRh1]} 23. Nf6+ {[%emt 0:00:04]} Kh8 {[%emt 0:01:37]} 24. Be4 {[%emt 0:00:03]} Qe2+ {[%emt 0:03:06]} 25. Kb1 {[%emt 0:12:27]} Ra8 {[%emt 0:01:38]} 26. Bb2 {[%emt 0:00:41]} Qxc4 {[%emt 0:01:35] Threatens to win with ...Qa2+.} 27. Bxb7 {[%emt 0:11:30]} Qd3+ {[%emt 0:01:36]} 28. Kc1 {[%emt 0:00:04]} Ra3 {[%emt 0:06:25] aiming for ...Qc4+.} 29. Nd5+ {[%emt 0:06:59] [#]} Rc3+ $1 {[%emt 0:00:13]} 30. Nxc3 {[%emt 0:00:13]} bxc3 {[%emt 0:00:03]} 31. Ba1 {[%emt 0:00:14]} Qd2+ {[%emt 0:01:10]} 32. Kb1 {[%emt 0:00:01]} f6 {[%emt 0:04:13] ( -> ...c2+)} 33. Be4 {[%emt 0:01:35] Against c2+} d5 {[%emt 0:00:09][%cal Bd6d5,Bd5d4][%mdl 32]} 34. Bc2 {[%emt 0:00:04]} d4 {[%emt 0:00:09] ...d3 is the strong threat.} 35. Rd1 {[%emt 0:00:04]} Qxf2 {[%emt 0:00:04]} 36. Rd3 {[%emt 0:00:48]} Kg7 {[%emt 0:00:49]} 37. Bd1 {[%emt 0:00:41]} h5 {[%emt 0:00:34]} 38. Rf3 {[%emt 0:01:26]} c2+ {[%emt 0:01:11] White did not feel at home in the position after the opening.  Weighted Error Value: White=0.92/Black=0.07 (flawless)} 0-1

[Event "FRA-ch Teams Top 16-A 2022"]
[Site "Chartres"]
[Date "2022.06.12"]
[Round "4.26"]
[White "Dourerassou, Jonathan"]
[Black "Kamsky, Gata"]
[Result "1/2-1/2"]
[ECO "C47"]
[WhiteElo "2446"]
[BlackElo "2661"]
[Annotator "TA"]
[PlyCount "32"]
[EventDate "2022.06.09"]
[EventType "team-tourn"]
[EventCountry "FRA"]
[SourceTitle "playchess.com"]
[Source "ChessBase"]
[SourceQuality "1"]
[TimeControl "40/5400+30:1800+30"]

{[%evp 17,32,-3,0,0,0,0,14,5,9,12,16,17,12,8,10,13,9]} 1. e4 {[%emt 0:04:51]} e5 {[%emt 0:00:13]} 2. Nf3 {[%emt 0:00:08]} Nc6 {[%emt 0:00:06]} 3. Nc3 {[%emt 0:00:04]} Nf6 {[%emt 0:01:46]} 4. d4 {[%emt 0:03:04]} exd4 {[%emt 0:00:08]} 5. Nxd4 {[%emt 0:00:06]} Bb4 {[%emt 0:00:06]} 6. Nxc6 {[%emt 0:00:14]} bxc6 {[%emt 0:00:06]} 7. Bd3 {[%emt 0:00:06]} O-O {[%emt 0:00:20]} 8. O-O {[%emt 0:00:06]} d5 {[%emt 0:00:07]} 9. exd5 {[%emt 0:00:08]} cxd5 {[%emt 0:00:05] The position is equal.} 10. h3 {[%emt 0:00:20] Prevents Bg4. C47: Scotch Four Knights and Four Knights with 4 g3.} c6 {[%emt 0:06:56]} 11. Qf3 {[%emt 0:00:27]} a5 {[%emt 0:13:12]} 12. Bg5 {[%emt 0:03:49]} h6 {[%emt 0:00:53]} 13. Bxf6 {[%emt 0:02:00]} Qxf6 {[%emt 0:00:05]} 14. Qxf6 {[%emt 0:00:08]} gxf6 {[%emt 0:00:04]} 15. Ne2 {[%emt 0:00:10]} Rb8 {[%emt 0:04:17] [#]} 16. Nd4 $146 {[%emt 0:12:49]} ({Predecessor:} 16. Rab1 Rb6 17. Ng3 Be6 18. Nh5 Be7 19. Rfe1 Rfb8 20. b3 c5 21. Rbd1 Kf8 22. Be2 {½-½ (58) Karas,M (2236)-Mraz,O (2136) Liptovsky Mikulas 2016}) 16... Rb6 {[%emt 0:04:13] A balanced but interesting game.  Weighted Error Value: White=0.01 (flawless) /Black=0.05 (flawless)} 1/2-1/2